bitfinex-derivatives/quotes_ETHF0:USTF0_20250309
["timestamp","ask_amount","ask_price","bid_price","bid_amount"]
[1741490156756,4.38734,2180.1,2179.8,0.00688531]
[1741490157458,3.8368,2180.1,2179.8,0.00688531]
[1741490157659,3.8368,2180.1,2179.8,0.55747531]
[1741490157862,3.8368,2180.1,2179.9,0.55058]
[1741490158061,3.8368,2180.1,2179.8,0.00688531]
[1741490158260,3.8368,2180.1,2179.8,0.55746531]
[1741490159167,4.38734,2180.1,2179.8,0.00688531]
[1741490159465,3.8368,2180.1,2179.8,0.00688531]
[1741490159660,3.8368,2180.1,2179.8,0.55747531]
[1741490160567,3.8368,2180.1,2179.8,0.00688531]
[1741490160766,3.8368,2180.1,2179.8,0.55747531]
[1741490160967,3.2078,2180.1,2180.0,0.55055]
[1741490161263,3.2078,2180.1,2179.9,0.55058]
[1741490161565,3.2078,2180.1,2179.8,1.29848531]
[1741490161765,0.5987,2180.2,2179.9,0.55058]
[1741490162461,0.5987,2180.2,2179.8,1.29848531]
[1741490162763,0.5987,2180.2,2180.0,0.55054]
[1741490164858,0.5987,2180.2,2179.8,0.00688531]
[1741490165066,0.5987,2180.2,2179.9,0.55057]
[1741490166561,0.5987,2180.2,2179.8,0.00688531]
[1741490166770,1.14922,2180.2,2179.8,0.00688531]
[1741490166962,0.5987,2180.2,2179.9,0.55056]
[1741490168062,0.5987,2180.2,2179.9,0.55058]
[1741490169960,0.55053,2180.1,2179.8,0.00688531]
[1741490170160,0.6078,2180.0,2179.9,0.55058]
[1741490170565,0.6078,2180.0,2179.8,0.55747531]
[1741490171671,0.6078,2180.0,2179.9,0.55058]
[1741490172169,0.5987,2180.2,2180.0,0.55053]
[1741490172767,0.5987,2180.2,2179.9,1.20246]
[1741490173970,0.5987,2180.2,2179.8,0.00688531]
[1741490173971,1.14921,2180.2,2179.8,0.55747531]
[1741490174167,0.5986,2180.1,2179.8,0.55747531]
[1741490174363,0.5986,2180.1,2179.8,0.00688531]
[1741490174670,0.5986,2180.1,2179.8,0.55747531]
[1741490175672,0.5986,2180.1,2179.9,0.55057]
[1741490175872,0.5986,2180.1,2179.8,0.55746531]
[1741490176469,1.14914,2180.1,2179.8,0.00688531]
[1741490176664,0.5986,2180.1,2179.8,0.55747531]
[1741490177564,0.5986,2180.1,2179.9,0.55057]
[1741490177768,0.5986,2180.1,2179.8,0.00688531]
[1741490177968,0.5986,2180.1,2179.9,0.55058]
[1741490178676,0.5986,2180.1,2179.8,0.00688531]
[1741490178677,0.5987,2180.2,2180.0,0.55053]
[1741490179369,0.5987,2180.2,2180.0,1.14373]
[1741490179769,0.5987,2180.2,2180.0,1.77753]
[1741490180173,0.5987,2180.2,2180.1,0.55053]
[1741490180874,3.2078,2180.4,2180.3,0.55048]
[1741490182075,3.2078,2180.8,2180.5,0.55043]
[1741490182264,3.2078,2180.8,2180.7,0.55038]
[1741490182471,3.16703697,2180.8,2180.7,0.55038]
[1741490184771,3.16703697,2180.8,2180.7,1.18108]
[1741490187079,0.00444439,2181.0,2180.9,0.55033]
[1741490187274,3.2078,2181.3,2180.8,3.2078]
[1741490187479,3.2078,2181.3,2181.2,0.55025]
[1741490188874,3.2078,2181.3,2181.1,0.6004]
[1741490189074,3.2078,2181.3,2181.0,0.00688531]
[1741490189375,3.2078,2181.3,2181.0,0.55718531]
[1741490189580,3.2078,2181.3,2181.0,0.00688531]
[1741490190481,3.75803,2181.3,2181.0,0.00688531]
[1741490190783,3.2078,2181.3,2181.0,0.00688531]
[1741490190981,3.75804,2181.3,2181.0,0.00688531]
[1741490191281,0.55028,2181.1,2181.0,0.00688531]
[1741490191477,0.55026,2181.2,2181.0,0.00688531]
[1741490191681,5.2148,2181.3,2181.0,0.00688531]
[1741490192479,5.76502,2181.3,2181.0,0.00688531]
[1741490192772,5.2148,2181.3,2181.0,0.00688531]
[1741490193184,5.76502,2181.3,2181.0,0.00688531]
[1741490193785,5.2148,2181.3,2181.0,0.00688531]
[1741490194077,5.2148,2181.3,2181.0,0.55717531]
[1741490194583,3.2078,2181.3,2181.1,0.6261]
[1741490194977,3.2078,2181.3,2181.2,1.2259]
[1741490195586,3.2078,2181.3,2181.1,0.6261]
[1741490199087,3.2078,2181.3,2181.0,0.00688531]
[1741490199683,3.2078,2181.3,2181.0,0.55717531]
[1741490199888,3.2078,2181.3,2181.0,0.00688531]
[1741490200386,3.2078,2181.3,2181.0,0.55717531]
[1741490200888,3.2078,2181.3,2181.1,0.55027]
[1741490201082,1.8786,2181.5,2181.0,0.00688531]
[1741490201289,1.2302,2181.5,2181.2,0.55025]
[1741490201489,1.2302,2181.5,2181.3,0.6118]
[1741490202492,0.55021,2181.4,2181.0,0.55717531]
[1741490202694,0.6,2181.4,2181.0,0.55717531]
[1741490203386,1.15021,2181.4,2181.0,0.00688531]
[1741490204491,3.75803,2181.3,2181.0,0.00688531]
[1741490204793,0.55026,2181.2,2181.0,0.00688531]
[1741490205098,0.5986,2181.1,2181.0,0.00688531]
[1741490205287,1.211,2181.1,2181.0,0.00688531]
[1741490208595,0.6124,2181.1,2181.0,0.00688531]
[1741490209393,3.2078,2181.3,2181.0,0.00688531]
[1741490209591,0.6,2181.4,2181.0,0.00688531]
[1741490209898,0.6,2181.4,2181.0,3.76497531]
[1741490210097,0.6,2181.4,2181.0,3.21468531]
[1741490210396,0.6,2181.4,2181.1,0.55026]
[1741490211397,0.6,2181.4,2181.0,3.76496531]
[1741490211590,0.6,2181.4,2181.1,0.55027]
[1741490212391,1.1502,2181.4,2181.0,3.76497531]
[1741490212591,0.55023,2181.3,2181.0,3.21468531]
[1741490212900,3.75803,2181.3,2181.0,0.00688531]
[1741490213599,3.2078,2181.3,2181.0,0.00688531]
[1741490213797,3.75803,2181.3,2181.0,0.00688531]
[1741490215395,3.2078,2181.3,2181.0,0.00688531]
[1741490215697,0.55028,2181.1,2181.0,0.00688531]
[1741490215893,0.55026,2181.2,2181.0,0.00688531]
[1741490216094,0.6018,2181.1,2181.0,0.00688531]
[1741490216293,1.1981,2181.1,2181.0,0.00688531]
[1741490216691,1.1981,2181.1,2181.0,0.63688531]
[1741490222306,1.1981,2181.1,2181.0,0.00688531]
[1741490224401,3.2078,2181.2,2181.0,0.00688531]
[1741490224608,3.2078,2181.2,2181.0,0.55717531]
[1741490225102,3.2078,2181.2,2181.1,0.6064]
[1741490226308,0.6161,2181.3,2181.1,0.6064]
[1741490227507,0.6161,2181.3,2181.0,0.00688531]
[1741490227807,0.6161,2181.3,2181.0,0.55718531]
[1741490230000,0.55025,2181.2,2181.0,0.00688531]
[1741490230203,0.655,2181.1,2181.0,0.00688531]
[1741490232207,1.20528,2181.1,2181.0,0.00688531]
[1741490233010,0.655,2181.1,2181.0,0.00688531]
[1741490233713,1.20528,2181.1,2181.0,0.00688531]
[1741490234501,0.655,2181.1,2181.0,0.00688531]
[1741490234704,1.20528,2181.1,2181.0,0.00688531]
[1741490237308,0.655,2181.1,2181.0,0.00688531]
[1741490237909,1.20528,2181.1,2181.0,0.00688531]
[1741490238613,3.2078,2181.2,2181.0,0.00688531]
[1741490238813,0.6161,2181.3,2181.0,0.00688531]
[1741490239009,0.6161,2181.3,2181.0,0.66118531]
[1741490239204,0.6161,2181.3,2181.0,1.27038531]
[1741490239410,0.6161,2181.3,2181.0,1.82066531]
[1741490240513,0.6161,2181.3,2181.0,1.82067531]
[1741490242018,0.6161,2181.3,2181.0,1.27038531]
[1741490242317,1.16633,2181.3,2181.0,0.00688531]
[1741490243308,0.6161,2181.3,2181.0,0.00688531]
[1741490243512,0.55028,2181.1,2181.0,0.00688531]
[1741490244611,3.75806,2181.2,2181.0,0.00688531]
[1741490245013,3.2078,2181.2,2181.0,0.00688531]
[1741490245410,0.55028,2181.1,2181.0,0.00688531]
[1741490248216,0.55036,2180.8,2180.6,0.5504]
[1741490248722,0.6519,2180.7,2180.5,2.44183]
[1741490248914,0.6519,2180.7,2180.5,1.8914]
[1741490249223,1.2023,2180.7,2180.5,0.6169]
[1741490249417,0.55041,2180.6,2180.4,20.59888531]
[1741490249715,1.80201,2180.6,2180.4,20.59888531]
[1741490249924,0.55043,2180.5,2180.4,20.59888531]
[1741490250219,1.80202,2180.6,2180.4,20.59888531]
[1741490250921,1.2516,2180.6,2180.4,20.59888531]
[1741490251116,0.632,2180.6,2180.4,21.74602531]
[1741490251616,1.18242,2180.6,2180.4,21.19558531]
[1741490251820,1.20229,2180.7,2180.4,21.19558531]
[1741490252715,0.6519,2180.7,2180.4,21.54002888]
[1741490252919,1.20229,2180.7,2180.4,21.54002888]
[1741490253514,0.6519,2180.7,2180.4,21.54002888]
[1741490253720,1.20228,2180.7,2180.4,21.54002888]
[1741490254320,6.87884366,2180.9,2180.5,0.55042]
[1741490254622,6.98451366,2180.9,2180.4,22.09046888]
[1741490254821,0.55037,2180.8,2180.4,21.54002888]
[1741490255325,6.98451366,2180.9,2180.4,21.54002888]
[1741490256222,0.55039,2180.7,2180.4,21.54002888]
[1741490256611,0.5504,2180.6,2180.4,21.54002888]
[1741490256815,1.1863,2180.6,2180.4,21.54002888]
[1741490257022,0.6558,2180.5,2180.4,21.54002888]
[1741490257618,1.2389,2180.8,2180.4,22.09047888]
[1741490257818,1.78926,2180.8,2180.4,22.09047888]
[1741490258927,0.55038,2180.7,2180.4,21.54002888]
[1741490259336,1.18298,2180.7,2180.4,21.54002888]
[1741490259927,0.5504,2180.6,2180.4,21.54002888]
[1741490260425,1.18299,2180.7,2180.4,22.09046888]
[1741490261630,0.5504,2180.6,2180.4,22.09045888]
[1741490263828,0.6326,2180.7,2180.4,21.54002888]
[1741490264030,0.55042,2180.6,2180.4,21.54002888]
[1741490264231,0.55042,2180.6,2180.4,0.94802888]
[1741490264621,0.6326,2180.7,2180.4,0.94802888]
[1741490264928,0.55043,2180.5,2180.4,0.94802888]
[1741490265619,0.55041,2180.6,2180.4,0.94802888]
[1741490265822,0.55043,2180.5,2180.4,0.94802888]
[1741490266534,0.55043,2180.5,2180.4,0.60358531]
[1741490268932,0.6326,2180.7,2180.4,0.60358531]
[1741490269137,0.55035,2180.8,2180.4,1.15402531]
[1741490269334,7.51075366,2180.9,2180.4,0.60358531]
[1741490269630,6.96041366,2180.9,2180.4,0.60358531]
[1741490269826,6.32851366,2180.9,2180.6,0.55039]
[1741490270028,3.82218531,2181.3,2180.7,0.6481]
[1741490270227,3.82218531,2181.3,2180.8,3.8536]
[1741490270228,3.76491531,2181.3,2180.8,3.8536]
[1741490270426,3.76491531,2181.3,2180.8,5.05184]
[1741490270836,3.21468531,2181.3,2180.8,5.05183]
[1741490271029,3.76491531,2181.3,2180.8,5.05183]
[1741490271227,3.21468531,2181.3,2180.8,4.5015]
[1741490271424,3.21468531,2181.3,2180.8,5.05183]
[1741490271626,3.21468531,2181.3,2180.8,4.5015]
[1741490271828,3.21468531,2181.3,2180.9,0.55031]
[1741490272237,3.76491531,2181.3,2180.8,5.05183]
[1741490272431,3.21468531,2181.3,2180.8,4.5015]
[1741490272728,3.21468531,2181.3,2181.0,0.55029]
[1741490272929,0.00688531,2181.3,2181.1,0.6172]
[1741490273135,0.00688531,2181.3,2181.2,1.2646]
[1741490276026,0.00688531,2181.3,2181.2,1.81485]
[1741490277237,0.6476,2181.8,2181.5,0.55015]
[1741490277537,0.6476,2181.8,2181.6,1.9153]
[1741490279137,1.19771,2181.8,2181.6,1.9153]
[1741490279635,0.6476,2181.8,2181.6,1.9153]
[1741490279835,0.6476,2181.8,2181.6,2.46545]
[1741490280923,0.6476,2181.8,2181.7,0.55012]
[1741490281130,0.6476,2181.8,2181.6,1.9153]
[1741490281332,0.6476,2181.8,2181.6,2.46543]
[1741490281532,6.414,2181.9,2181.6,2.46543]
[1741490281841,3.8037,2181.9,2181.6,1.9153]
[1741490282433,4.35378,2181.9,2181.6,1.9153]
[1741490284039,0.55011,2181.8,2181.6,1.9153]
[1741490284443,4.35378,2181.9,2181.6,1.9153]
[1741490285941,0.55012,2181.7,2181.6,1.9153]
[1741490286240,1.79772,2181.8,2181.6,1.9153]
[1741490286640,1.79772,2181.8,2181.6,1.2663]
[1741490287540,1.2476,2181.8,2181.6,1.2663]
[1741490287736,4.36831366,2181.8,2181.5,0.00688531]
[1741490287935,3.75795,2181.6,2181.5,0.00688531]
[1741490289642,3.2078,2181.6,2181.0,0.6558]
[1741490289943,0.55027,2181.2,2181.0,0.6558]
[1741490290241,0.6021,2181.1,2181.0,0.6558]
[1741490290428,1.15238,2181.1,2180.9,0.6546]
[1741490290634,0.55035,2180.8,2180.7,3.2078]
[1741490290935,0.5504,2180.7,2180.5,21.2294]
[1741490291131,1.16,2180.7,2180.5,21.23628531]
[1741490291539,0.5504,2180.6,2180.5,20.59488531]
[1741490291938,3.7582,2180.6,2180.5,0.00688531]
[1741490292136,4.3929,2180.6,2180.5,0.00688531]
[1741490293342,0.55049,2180.3,2180.1,3.2078]
[1741490293841,6.96321366,2180.6,2180.1,3.2078]
[1741490293842,0.5505,2180.2,2180.1,3.2078]
[1741490294336,0.55049,2180.3,2180.1,3.2078]
[1741490294936,2.005,2180.4,2179.9,0.35137922]
[1741490295335,0.55054,2180.1,2179.9,0.00688531]
[1741490295538,0.55055,2180.0,2179.9,0.00688531]
[1741490295845,0.55054,2180.1,2179.9,0.00688531]
[1741490296043,0.55055,2180.0,2179.9,0.00688531]
[1741490296243,0.55055,2180.1,2179.9,0.00688531]
[1741490296545,0.6518,2180.2,2179.9,0.00688531]
[1741490296744,3.75835,2180.0,2179.9,0.00688531]
[1741490297742,0.5506,2179.8,2179.7,20.582]
[1741490298643,0.55059,2179.9,2179.7,20.582]
[1741490299149,0.5506,2179.8,2179.7,20.582]
[1741490300742,8.34039897,2180.0,2179.6,0.00688531]
[1741490300946,3.75843,2179.7,2179.6,0.00688531]
[1741490302249,3.2078,2179.7,2179.6,0.00688531]
[1741490302654,3.75843,2179.7,2179.6,0.00688531]
[1741490303645,4.98433,2179.7,2179.6,0.00688531]
[1741490306550,7.55441366,2179.7,2179.2,0.6265]
[1741490306758,0.55073,2179.3,2179.2,0.6265]
[1741490307442,0.55075,2179.2,2179.1,0.6556]
[1741490308452,0.6124,2179.3,2178.9,20.59788531]
[1741490308652,0.55081,2179.0,2178.9,0.00688531]
[1741490309347,0.55093,2178.5,2178.4,1.2961]
[1741490309754,0.55093,2178.5,2178.0,1.17504]
[1741490309947,0.55093,2178.5,2178.1,21.874]
[1741490310148,0.55094,2178.5,2178.1,21.874]
[1741490310458,0.00688531,2178.5,2178.1,22.43190531]
[1741490310657,0.00688531,2178.5,2178.1,21.88088531]
[1741490310858,0.60238531,2178.5,2178.1,22.43191531]
[1741490311160,1.15333531,2178.5,2178.1,22.43191531]
[1741490311359,1.15331531,2178.5,2178.1,22.43190531]
[1741490311559,1.15331531,2178.5,2178.1,21.88088531]
[1741490312059,0.60238531,2178.5,2178.1,21.88088531]
[1741490312456,1.15333531,2178.5,2178.1,21.88088531]
[1741490312657,0.60238531,2178.5,2178.1,21.88088531]
[1741490312852,0.55099,2178.3,2178.1,21.88088531]
[1741490313059,1.15332531,2178.5,2178.1,21.88088531]
[1741490313254,0.60238531,2178.5,2178.1,21.88088531]
[1741490314262,1.15332531,2178.5,2178.1,21.88088531]
[1741490314455,0.55782531,2178.5,2178.1,21.88088531]
[1741490314657,0.55782531,2178.5,2178.1,22.43191531]
[1741490315460,0.55782531,2178.5,2178.1,21.88088531]
[1741490315656,0.00688531,2178.5,2178.1,21.88088531]
[1741490315863,0.00688531,2178.5,2178.2,0.55101]
[1741490316262,0.00688531,2178.5,2178.1,22.43190531]
[1741490316664,0.00688531,2178.5,2178.2,0.55101]
[1741490318565,0.55782531,2178.5,2178.1,21.88088531]
[1741490318764,0.00688531,2178.5,2178.1,21.88088531]
[1741490319064,0.55781531,2178.5,2178.1,22.43191531]
[1741490319670,0.00688531,2178.5,2178.1,21.88088531]
[1741490320068,0.00688531,2178.5,2178.2,0.55099]
[1741490320871,0.55782531,2178.5,2178.1,22.43190531]
[1741490321869,0.00688531,2178.5,2178.1,22.43190531]
[1741490323674,3.21468531,2178.5,2178.2,0.551]
[1741490323870,3.76563531,2178.5,2178.1,22.43190531]
[1741490326273,3.76563531,2178.5,2178.2,0.551]
[1741490326469,3.76561531,2178.5,2178.2,0.551]
[1741490326770,3.21468531,2178.5,2178.1,21.88088531]
[1741490326975,3.76563531,2178.5,2178.1,21.88088531]
[1741490327279,3.76563531,2178.5,2178.2,0.551]
[1741490327465,3.76563531,2178.5,2178.1,21.88088531]
[1741490327776,3.76563531,2178.5,2178.2,0.55101]
[1741490328579,3.21468531,2178.5,2178.1,21.88088531]
[1741490328780,3.21468531,2178.5,2178.2,0.55098]
[1741490329470,3.21468531,2178.5,2178.2,0.55099]
[1741490329973,3.21468531,2178.5,2178.3,0.55097]
[1741490330173,3.21468531,2178.5,2178.4,0.6276]
[1741490330880,3.21468531,2178.5,2178.4,1.17856]
[1741490331079,0.00688531,2178.5,2178.4,1.17856]
[1741490331379,0.00688531,2178.5,2178.4,0.6276]
[1741490331681,0.00688531,2178.5,2178.4,1.17856]
[1741490338381,0.00688531,2178.5,2178.1,21.88088531]
[1741490338584,0.00688531,2178.5,2178.1,22.50498531]
[1741490338982,0.00688531,2178.5,2178.3,0.55096]
[1741490339183,0.00688531,2178.5,2178.1,22.50498531]
[1741490339383,0.00688531,2178.5,2178.4,0.55096]
[1741490339583,0.00688531,2178.5,2178.3,0.55096]
[1741490339778,0.00688531,2178.5,2178.1,22.50498531]
[1741490339980,0.00688531,2178.5,2178.4,0.55096]
[1741490340784,0.00688531,2178.5,2178.1,22.50498531]
[1741490341085,0.00688531,2178.5,2178.3,0.55097]
[1741490341590,0.00688531,2178.5,2178.4,0.55096]
[1741490341879,0.00688531,2178.5,2178.3,0.55097]
[1741490343183,0.00688531,2178.5,2178.4,0.55096]
[1741490344385,3.2078,2179.0,2178.4,0.55096]
[1741490344690,3.8239,2179.3,2178.6,3.2078]
[1741490344881,3.2078,2179.3,2179.0,0.55081]
[1741490345086,3.2078,2179.3,2179.1,1.76937]
[1741490345282,0.55074,2179.3,2179.1,1.2186]
[1741490345483,2.007,2179.4,2179.1,1.2186]
[1741490345684,2.56460531,2179.4,2179.1,1.2186]
[1741490346089,2.01388531,2179.4,2179.1,1.76938]
[1741490347188,0.00688531,2179.4,2179.1,1.2186]
[1741490347493,0.00688531,2179.4,2179.3,0.55073]
[1741490349082,5.8329,2179.9,2179.7,0.55062]
[1741490349283,5.8329,2179.9,2179.6,0.55064]
[1741490349991,3.2078,2179.9,2179.8,0.5506]
[1741490351191,0.00688531,2180.1,2179.9,0.55057]
[1741490351597,0.00688531,2180.1,2180.0,0.55055]
[1741490352891,0.00688531,2180.1,2179.6,0.00688531]
[1741490352892,0.55062,2179.8,2179.6,0.00688531]
[1741490353100,0.55063,2179.7,2179.6,0.00688531]
[1741490353286,1.77783,2179.7,2179.6,0.00688531]
[1741490357897,0.55073,2179.3,2179.2,20.607]
[1741490358100,0.55073,2179.3,2178.9,3.2078]
[1741490358101,0.55077,2179.2,2178.9,3.75862]
[1741490358299,0.6465,2179.1,2179.0,0.55081]
[1741490358902,2.6525,2179.4,2178.9,3.2078]
[1741490359102,2.6525,2179.4,2179.2,0.55075]
[1741490359502,3.20321,2179.4,2179.0,0.55079]
[1741490359710,0.55073,2179.3,2179.0,0.55079]
[1741490360401,3.20322,2179.4,2179.0,0.55079]
[1741490360800,0.55074,2179.3,2178.9,3.75862]
[1741490361000,3.20321,2179.4,2179.0,0.5508]
[1741490361202,3.2078,2179.5,2179.4,0.5507]
[1741490361497,3.12071366,2179.6,2179.2,0.55074]
[1741490361707,3.12071366,2179.6,2179.2,1.82744]
[1741490362006,1.17854,2179.7,2179.2,1.82744]
[1741490363409,0.6279,2179.7,2179.2,1.82744]
[1741490363602,0.55066,2179.6,2179.2,1.82744]
[1741490363804,0.6279,2179.7,2179.3,0.55072]
[1741490364298,0.6279,2179.7,2179.2,1.2767]
[1741490364504,0.6279,2179.7,2179.4,0.5507]
[1741490364711,0.6279,2179.7,2179.3,0.55071]
[1741490365199,0.6279,2179.7,2179.4,0.55069]
[1741490365398,0.6279,2179.7,2179.2,1.2767]
[1741490365603,0.6279,2179.7,2179.3,0.55071]
[1741490366109,0.6279,2179.7,2179.4,0.5507]
[1741490366702,5.7644,2179.9,2179.2,1.2767]
[1741490366703,3.2078,2179.9,2179.3,3.2078]
[1741490366908,3.2078,2179.9,2179.3,5.2138]
[1741490367313,3.75838,2179.9,2179.5,0.55067]
[1741490367701,3.8031,2179.9,2179.5,0.55067]
[1741490368607,3.8031,2179.9,2179.3,5.2138]
[1741490368807,3.2078,2179.9,2179.7,0.55061]
[1741490369110,3.2078,2179.9,2179.8,0.633]
[1741490369304,3.2078,2179.9,2179.8,1.1836]
[1741490370117,0.00688531,2180.1,2179.8,1.1836]
[1741490370510,0.00688531,2180.1,2179.8,0.633]
[1741490370710,0.00688531,2180.1,2179.6,3.75843]
[1741490370911,0.55055,2180.0,2179.6,3.75843]
[1741490371217,0.55055,2180.0,2179.6,3.75845]
[1741490371610,0.6161,2179.9,2179.6,3.75845]
[1741490371811,0.6161,2179.9,2179.7,0.55062]
[1741490372315,3.8239,2179.9,2179.6,0.55064]
[1741490372515,0.629,2179.8,2179.3,1.879]
[1741490372815,0.629,2179.8,2179.6,0.55065]
[1741490375311,0.629,2179.8,2179.5,0.55067]
[1741490375510,0.629,2179.8,2179.6,0.55064]
[1741490375717,0.629,2179.8,2179.3,1.879]
[1741490375911,0.629,2179.8,2179.6,0.55065]
[1741490376509,0.629,2179.8,2179.6,0.55064]
[1741490377617,1.17961,2179.8,2179.4,0.55069]
[1741490377917,0.612,2179.7,2179.3,1.879]
[1741490378114,0.612,2179.7,2179.5,0.55067]
[1741490378317,0.612,2179.7,2179.4,0.55069]
[1741490378510,0.612,2179.7,2179.3,1.879]
[1741490378714,0.612,2179.7,2179.4,0.5507]
[1741490379216,0.612,2179.7,2179.3,1.879]
[1741490379420,0.55066,2179.6,2179.3,1.879]
[1741490379619,1.2122,2179.7,2179.4,0.5507]
[1741490380118,0.629,2179.8,2179.3,1.879]
[1741490380418,0.629,2179.8,2179.5,0.55067]
[1741490380614,1.17961,2179.8,2179.4,0.55069]
[1741490380813,0.629,2179.8,2179.3,1.879]
[1741490381014,0.629,2179.8,2179.5,0.55066]
[1741490381213,1.1796,2179.8,2179.3,1.879]
[1741490381419,0.55066,2179.6,2179.3,1.879]
[1741490381622,0.55065,2179.7,2179.3,2.42972]
[1741490381820,1.20288,2179.6,2179.3,2.42973]
[1741490382121,1.20288,2179.6,2179.3,1.879]
[1741490382320,0.6522,2179.6,2179.3,2.42972]
[1741490383915,1.20286,2179.6,2179.3,2.42972]
[1741490384116,1.20286,2179.6,2179.3,1.80442]
[1741490384716,4.41066,2179.6,2179.3,1.80442]
[1741490385124,3.86,2179.6,2179.4,0.5507]
[1741490385318,3.86,2179.6,2179.3,1.2537]
[1741490385518,4.41066,2179.6,2179.3,1.80442]
[1741490386025,3.2078,2179.6,2179.4,0.55069]
[1741490386417,3.75845,2179.6,2179.3,1.2537]
[1741490386619,3.75845,2179.6,2179.3,1.80441]
[1741490387329,0.55069,2179.5,2179.3,1.2537]
[1741490387627,3.75847,2179.6,2179.3,1.80443]
[1741490387820,0.55068,2179.5,2179.3,1.2537]
[1741490388021,1.19538,2179.5,2179.3,1.2537]
[1741490388223,1.19538,2179.5,2179.3,0.627]
[1741490388522,0.6258,2179.4,2179.3,0.627]
[1741490389429,0.6258,2179.4,2179.3,1.17773]
[1741490390326,0.6258,2179.4,2179.3,0.627]
[1741490391929,0.6258,2179.4,2178.9,20.93521098]
[1741490392127,0.55077,2179.2,2178.9,21.75502]
[1741490392318,3.2078,2179.2,2178.9,20.597]
[1741490392521,0.55081,2179.0,2178.9,20.597]
[1741490392923,1.85721,2179.0,2178.9,20.597]
[1741490394718,7.3114,2179.0,2178.4,1.19625]
[1741490394919,0.55096,2178.4,2178.3,3.2078]
[1741490395119,3.2078,2178.7,2178.3,3.2078]
[1741490395328,0.55096,2178.4,2178.3,3.2078]
[1741490396826,0.55101,2178.2,2178.1,0.00688531]
[1741490401124,3.2078,2178.4,2178.1,0.00688531]
[1741490401431,0.55098,2178.3,2178.1,0.00688531]
[1741490402327,0.55101,2178.2,2178.1,0.00688531]
[1741490402831,2.006,2178.2,2177.9,20.6]
[1741490403130,0.55111,2177.8,2177.7,0.6027]
[1741490403535,3.2078,2178.0,2177.4,1.2265]
[1741490403732,0.6272,2177.7,2177.4,2.38041]
[1741490403935,0.6272,2177.7,2177.5,0.00459023]
[1741490404132,0.6272,2177.7,2177.5,0.55577023]
[1741490404334,0.5511,2177.9,2177.5,0.00459023]
[1741490404634,0.55109,2177.9,2177.5,0.55577023]
[1741490404833,0.55109,2177.9,2177.5,0.00459023]
[1741490405037,0.55111,2177.8,2177.5,0.00459023]
[1741490405736,0.5511,2177.9,2177.5,0.00459023]
[1741490405937,4.37297,2178.0,2177.5,0.00459023]
[1741490406236,0.55109,2177.9,2177.5,0.00459023]
[1741490406539,0.55112,2177.8,2177.5,0.00459023]
[1741490406734,0.55109,2177.9,2177.5,0.00459023]
[1741490407231,3.8219,2178.0,2177.5,0.00459023]
[1741490407431,0.5511,2177.9,2177.5,0.55576023]
[1741490407633,3.8219,2178.0,2177.5,0.00459023]
[1741490407931,3.8219,2178.0,2177.5,0.55577023]
[1741490408232,4.37297,2178.0,2177.5,0.55577023]
[1741490408430,0.55109,2177.9,2177.5,0.00459023]
[1741490408735,0.55111,2177.8,2177.5,0.00459023]
[1741490409427,3.8219,2178.0,2177.5,0.00459023]
[1741490409627,0.55109,2177.9,2177.5,0.55577023]
[1741490410828,0.55112,2177.8,2177.5,0.00459023]
[1741490411029,3.2078,2177.6,2177.5,0.00459023]
[1741490412840,3.75896,2177.6,2177.5,0.00459023]
[1741490413034,3.8596,2177.6,2177.5,0.00459023]
[1741490413935,4.41076,2177.6,2177.5,0.00459023]
[1741490414239,3.8596,2177.6,2177.5,0.00459023]
[1741490415139,4.41076,2177.6,2177.5,0.00459023]
[1741490415326,5.65016,2177.6,2177.5,0.00459023]
[1741490421744,0.55125,2177.3,2177.1,20.608]
[1741490422038,0.6375,2177.2,2177.1,20.608]
[1741490422338,0.6375,2177.2,2177.1,21.2409]
[1741490422727,3.2078,2177.3,2177.2,0.55126]
[1741490422932,0.00688531,2177.4,2177.1,21.2409]
[1741490423139,0.00688531,2177.4,2177.2,0.55124]
[1741490424040,0.00688531,2177.4,2177.1,21.79217]
[1741490424240,0.00688531,2177.4,2177.1,21.2409]
[1741490424432,0.00688531,2177.4,2177.2,0.55124]
[1741490424636,0.00688531,2177.4,2177.1,21.2409]
[1741490424837,0.55124,2177.3,2177.1,21.2409]
[1741490425138,0.00688531,2177.4,2177.1,21.2409]
[1741490425542,0.55811531,2177.4,2177.1,21.2409]
[1741490426434,0.55124,2177.3,2177.1,21.2409]
[1741490426638,0.55124,2177.3,2177.1,20.608]
[1741490426840,1.81306,2177.2,2177.1,20.608]
[1741490427936,1.2618,2177.2,2177.1,20.608]
[1741490428145,1.81306,2177.2,2177.1,20.608]
[1741490429542,1.2618,2177.2,2177.1,20.608]
[1741490429740,1.81306,2177.2,2177.1,20.608]
[1741490430245,1.81306,2177.2,2177.0,0.5513]
[1741490430442,1.16066,2177.2,2176.9,0.6195]
[1741490430749,1.16066,2177.2,2176.9,1.17082]
[1741490430949,1.16066,2177.2,2176.9,0.6195]
[1741490431149,0.55129,2177.1,2176.9,0.6195]
[1741490431349,1.17789,2177.1,2176.9,0.6195]
[1741490432250,1.17789,2177.1,2176.7,3.2078]
[1741490432251,2.00486,2177.1,2176.7,3.2078]
[1741490432553,0.55137,2176.8,2176.4,1.248]
[1741490432753,0.55137,2176.8,2176.4,1.79945]
[1741490433053,0.55137,2176.8,2176.4,1.61911714]
[1741490433257,0.55137,2176.8,2176.4,2.17056714]
[1741490434556,0.55138,2176.8,2176.4,2.17056714]
[1741490434853,6.40332,2177.0,2176.4,1.61911714]
[1741490435155,0.6094,2177.2,2176.4,1.61911714]
[1741490435156,2.007,2177.2,2176.6,3.2078]
[1741490435352,2.55826,2177.2,2176.8,0.55134]
[1741490435555,0.55129,2177.1,2176.9,0.6573]
[1741490435758,2.007,2177.2,2176.9,0.6573]